[Event "Titled Tuesday Blitz October 18 Late 2022"]
[White "Iliaguev, Nisim"]
[Black "Lorenzo De La Riva, Lazaro"]
[WhiteFideId "2817276"]
[BlackFideId "2268809"]
[WhiteElo "2264"]
[BlackElo "2325"]
[Result "1-0"]
[Round "01"]
[TimeControl "180+1"]
[Date "2022.10.19"]
[WhiteClock "0:00:07"]
[BlackClock "0:00:03"]

1. d4 {[%clk 0:03:00]}  d5 {[%clk 0:02:42]} 2. g3 {[%clk 0:03:01]}  Nf6 {[%clk 0:02:40]} 3. Bg2 {[%clk 0:03:01]}  e6 {[%clk 0:02:41]} 4. Nf3 {[%clk 0:03:02]}  Be7 {[%clk 0:02:37]} 5. O-O {[%clk 0:03:02]}  O-O {[%clk 0:02:37]} 6. c4 {[%clk 0:03:03]}  dxc4 {[%clk 0:02:36]} 7. Ne5 {[%clk 0:03:03]}  Nc6 {[%clk 0:02:36]} 8. Nxc6 {[%clk 0:03:03]}  bxc6 {[%clk 0:02:37]} 9. Na3 {[%clk 0:03:03]}  Bxa3 {[%clk 0:02:32]} 10. bxa3 {[%clk 0:03:04]}  Nd5 {[%clk 0:02:31]} 11. e4 {[%clk 0:03:01]}  Nb6 {[%clk 0:02:31]} 12. a4 {[%clk 0:03:00]}  a5 {[%clk 0:02:29]} 13. Ba3 {[%clk 0:03:00]}  Re8 {[%clk 0:02:29]} 14. Bc5 {[%clk 0:02:57]}  Rb8 {[%clk 0:02:22]} 15. Qc2 {[%clk 0:02:52]}  Ba6 {[%clk 0:02:22]} 16. Rfd1 {[%clk 0:02:52]}  Nd7 {[%clk 0:02:21]} 17. Ba3 {[%clk 0:02:51]}  Qc8 {[%clk 0:02:08]} 18. Qc3 {[%clk 0:02:47]}  Nb6 {[%clk 0:02:01]} 19. Qxa5 {[%clk 0:02:45]}  Ra8 {[%clk 0:02:01]} 20. Qb4 {[%clk 0:02:42]}  Rb8 {[%clk 0:01:33]} 21. a5 {[%clk 0:02:39]}  Nd7 {[%clk 0:01:31]} 22. Qc3 {[%clk 0:02:37]}  Rb5 {[%clk 0:01:22]} 23. e5 {[%clk 0:02:23]}  Qa8 {[%clk 0:00:54]} 24. Qxc4 {[%clk 0:02:19]}  Bb7 {[%clk 0:00:53]} 25. Bb4 {[%clk 0:02:11]}  c5 {[%clk 0:00:51]} 26. Qxb5 {[%clk 0:01:49]}  Bxg2 {[%clk 0:00:51]} 27. Qxd7 {[%clk 0:01:35]}  cxb4 {[%clk 0:00:47]} 28. Qxe8+ {[%clk 0:01:26]}  Qxe8 {[%clk 0:00:47]} 29. Kxg2 {[%clk 0:01:26]}  Qb5 {[%clk 0:00:45]} 30. Rac1 {[%clk 0:01:18]}  Qxa5 {[%clk 0:00:45]} 31. Rc2 {[%clk 0:01:06]}  h5 {[%clk 0:00:43]} 32. h4 {[%clk 0:01:06]}  Qd5+ {[%clk 0:00:41]} 33. Kg1 {[%clk 0:01:04]}  c6 {[%clk 0:00:37]} 34. Rdd2 {[%clk 0:01:01]}  Kh7 {[%clk 0:00:35]} 35. Rc5 {[%clk 0:00:58]}  Qe4 {[%clk 0:00:34]} 36. Rc1 {[%clk 0:00:48]}  Kg6 {[%clk 0:00:32]} 37. Rcc2 {[%clk 0:00:34]}  Kf5 {[%clk 0:00:29]} 38. Rb2 {[%clk 0:00:32]}  g5 {[%clk 0:00:21]} 39. hxg5 {[%clk 0:00:24]}  Kxg5 {[%clk 0:00:22]} 40. Kh2 {[%clk 0:00:21]}  h4 {[%clk 0:00:21]} 41. Rxb4 {[%clk 0:00:17]}  h3 {[%clk 0:00:19]} 42. f3 {[%clk 0:00:07]}  Qxf3 {[%clk 0:00:15]} 43. Rb3 {[%clk 0:00:07]}  Qf1 {[%clk 0:00:14]} 44. Rbb2 {[%clk 0:00:06]}  Kg4 {[%clk 0:00:12]} 45. Rf2 {[%clk 0:00:06]}  Qc1 {[%clk 0:00:10]} 46. Rf4+ {[%clk 0:00:07]}  Kg5 {[%clk 0:00:11]} 47. Rbf2 {[%clk 0:00:07]}  Qe3 {[%clk 0:00:10]} 48. Kxh3 {[%clk 0:00:07]}  Qe1 {[%clk 0:00:07]} 49. Kg2 {[%clk 0:00:07]}  Qe3 {[%clk 0:00:06]} 50. Kh3 {[%clk 0:00:06]}  Qe1 {[%clk 0:00:06]} 51. Kh2 {[%clk 0:00:05]}  Qe3 {[%clk 0:00:06]} 52. R2f3 {[%clk 0:00:05]}  Qe2+ {[%clk 0:00:06]} 53. Rf2 {[%clk 0:00:06]}  Qh5+ {[%clk 0:00:06]} 54. Kg2 {[%clk 0:00:06]}  Qd1 {[%clk 0:00:07]} 55. Rxf7 {[%clk 0:00:06]}  Qxd4 {[%clk 0:00:07]} 56. Rg7+ {[%clk 0:00:06]}  Kh6 {[%clk 0:00:07]} 57. Re7 {[%clk 0:00:03]}  Qd5+ {[%clk 0:00:08]} 58. Kh3 {[%clk 0:00:03]}  Qxe5 {[%clk 0:00:09]} 59. Rf4 {[%clk 0:00:03]}  Kg6 {[%clk 0:00:07]} 60. Ref7 {[%clk 0:00:04]}  Qh5+ {[%clk 0:00:06]} 61. Kg2 {[%clk 0:00:04]}  Qe2+ {[%clk 0:00:07]} 62. Rf2 {[%clk 0:00:04]}  Qe4+ {[%clk 0:00:08]} 63. Kh3 {[%clk 0:00:05]}  e5 {[%clk 0:00:07]} 64. R7f6+ {[%clk 0:00:05]}  Kg5 {[%clk 0:00:07]} 65. R2f5+ {[%clk 0:00:03]}  Qxf5+ {[%clk 0:00:07]} 66. Rxf5+ {[%clk 0:00:04]}  Kxf5 {[%clk 0:00:08]} 67. a4 {[%clk 0:00:05]}  e4 {[%clk 0:00:08]} 68. Kg2 {[%clk 0:00:05]}  c5 {[%clk 0:00:06]} 69. a5 {[%clk 0:00:06]}  c4 {[%clk 0:00:06]} 70. a6 {[%clk 0:00:07]}  c3 {[%clk 0:00:07]} 71. a7 {[%clk 0:00:07]}  c2 {[%clk 0:00:08]} 72. a8=Q {[%clk 0:00:08]}  c1=Q {[%clk 0:00:09]} 73. Qd5+ {[%clk 0:00:08]}  Kf6 {[%clk 0:00:08]} 74. Qxe4 {[%clk 0:00:09]}  Qd2+ {[%clk 0:00:07]} 75. Kf3 {[%clk 0:00:09]}  Qd1+ {[%clk 0:00:07]} 76. Kf4 {[%clk 0:00:09]}  Qf1+ {[%clk 0:00:06]} 77. Kg4 {[%clk 0:00:09]}  Qd1+ {[%clk 0:00:05]} 78. Kh4 {[%clk 0:00:08]}  Kg7 {[%clk 0:00:02]} 79. Qe7+ {[%clk 0:00:08]}  Kg6 {[%clk 0:00:02]} 80. Qg5+ {[%clk 0:00:08]}  Kf7 {[%clk 0:00:03]} 81. Qh5+ {[%clk 0:00:07]} 1-0


[Site "https://www.chess.com"]

[Event "Titled Tuesday Blitz October 18 Late 2022"]
[White "Ismayil, Malak"]
[Black "Riehle, Marco"]
[WhiteFideId "13412604"]
[BlackFideId "12904392"]
[WhiteElo "1879"]
[BlackElo "2462"]
[Result "0-1"]
[Round "01"]
[TimeControl "180+1"]
[Date "2022.10.19"]
[WhiteClock "0:00:06"]
[BlackClock "0:00:58"]

1. e4 {[%clk 0:02:59]}  e5 {[%clk 0:02:58]} 2. Nf3 {[%clk 0:03:00]}  Nf6 {[%clk 0:02:58]} 3. Nxe5 {[%clk 0:02:59]}  Nxe4 {[%clk 0:02:58]} 4. Nc3 {[%clk 0:02:54]}  Qe7 {[%clk 0:02:57]} 5. Nxe4 {[%clk 0:02:49]}  Qxe5 {[%clk 0:02:57]} 6. Qe2 {[%clk 0:02:47]}  d5 {[%clk 0:02:56]} 7. Nc3 {[%clk 0:02:41]}  Qxe2+ {[%clk 0:02:55]} 8. Bxe2 {[%clk 0:02:42]}  c6 {[%clk 0:02:55]} 9. d3 {[%clk 0:02:42]}  Bd6 {[%clk 0:02:54]} 10. Bf3 {[%clk 0:02:34]}  O-O {[%clk 0:02:52]} 11. O-O {[%clk 0:02:33]}  Na6 {[%clk 0:02:48]} 12. a3 {[%clk 0:02:32]}  Bf5 {[%clk 0:02:47]} 13. Bg5 {[%clk 0:02:25]}  Nc7 {[%clk 0:02:46]} 14. Ne2 {[%clk 0:02:15]}  Rfe8 {[%clk 0:02:41]} 15. Bf4 {[%clk 0:02:02]}  Bxf4 {[%clk 0:02:27]} 16. Nxf4 {[%clk 0:02:01]}  Nb5 {[%clk 0:02:27]} 17. g4 {[%clk 0:01:52]}  Nd4 {[%clk 0:02:21]} 18. Kg2 {[%clk 0:01:51]}  Bd7 {[%clk 0:02:16]} 19. c3 {[%clk 0:01:47]}  Nxf3 {[%clk 0:02:03]} 20. Kxf3 {[%clk 0:01:48]}  Re7 {[%clk 0:02:03]} 21. Rae1 {[%clk 0:01:44]}  Rae8 {[%clk 0:01:57]} 22. Re3 {[%clk 0:01:35]}  Rxe3+ {[%clk 0:01:55]} 23. fxe3 {[%clk 0:01:35]}  g6 {[%clk 0:01:49]} 24. Ne2 {[%clk 0:01:23]}  c5 {[%clk 0:01:43]} 25. d4 {[%clk 0:01:14]}  b6 {[%clk 0:01:41]} 26. Ng3 {[%clk 0:01:09]}  Kg7 {[%clk 0:01:36]} 27. g5 {[%clk 0:01:09]}  h6 {[%clk 0:01:35]} 28. h4 {[%clk 0:01:03]}  hxg5 {[%clk 0:01:35]} 29. hxg5 {[%clk 0:01:04]}  f6 {[%clk 0:01:35]} 30. gxf6+ {[%clk 0:01:03]}  Kxf6 {[%clk 0:01:36]} 31. Rh1 {[%clk 0:00:45]}  Kg7 {[%clk 0:01:29]} 32. Kg2 {[%clk 0:00:22]}  Rxe3 {[%clk 0:01:23]} 33. Rd1 {[%clk 0:00:19]}  Re8 {[%clk 0:01:20]} 34. Kf2 {[%clk 0:00:17]}  Bg4 {[%clk 0:01:16]} 35. Rd2 {[%clk 0:00:16]}  c4 {[%clk 0:01:15]} 36. Nf1 {[%clk 0:00:14]}  Rf8+ {[%clk 0:01:14]} 37. Kg1 {[%clk 0:00:13]}  b5 {[%clk 0:01:07]} 38. Ne3 {[%clk 0:00:11]}  Be6 {[%clk 0:01:08]} 39. Re2 {[%clk 0:00:08]}  Rf6 {[%clk 0:01:08]} 40. Ng2 {[%clk 0:00:08]}  g5 {[%clk 0:01:07]} 41. Re5 {[%clk 0:00:08]}  Kg6 {[%clk 0:01:07]} 42. Ne3 {[%clk 0:00:08]}  a6 {[%clk 0:01:00]} 43. Nxd5 {[%clk 0:00:08]}  Bxd5 {[%clk 0:01:01]} 44. Rxd5 {[%clk 0:00:09]}  Kh5 {[%clk 0:01:01]} 45. Kg2 {[%clk 0:00:09]}  Kh4 {[%clk 0:01:01]} 46. Re5 {[%clk 0:00:09]}  g4 {[%clk 0:01:01]} 47. d5 {[%clk 0:00:09]}  Rf3 {[%clk 0:01:00]} 48. Re4 {[%clk 0:00:08]}  Rd3 {[%clk 0:00:58]} 49. Rd4 {[%clk 0:00:06]}  Rxd4 {[%clk 0:00:58]} 0-1


[Site "https://www.chess.com"]

[Event "Titled Tuesday Blitz October 18 Late 2022"]
[White "Jaferian, Koosha"]
[Black "Ovezdurdyyeva, Jemal"]
[WhiteFideId "12507440"]
[BlackFideId "14001888"]
[WhiteElo "2127"]
[BlackElo "1961"]
[Result "1-0"]
[Round "01"]
[TimeControl "180+1"]
[Date "2022.10.19"]
[WhiteClock "0:01:19"]
[BlackClock "0:00:19"]

1. Nf3 {[%clk 0:02:58]}  Nf6 {[%clk 0:02:59]} 2. b3 {[%clk 0:02:58]}  e6 {[%clk 0:02:59]} 3. Bb2 {[%clk 0:02:59]}  Be7 {[%clk 0:02:59]} 4. e3 {[%clk 0:02:59]}  O-O {[%clk 0:02:59]} 5. Be2 {[%clk 0:03:00]}  b6 {[%clk 0:02:59]} 6. O-O {[%clk 0:03:00]}  Bb7 {[%clk 0:03:00]} 7. d4 {[%clk 0:03:01]}  c5 {[%clk 0:03:00]} 8. c4 {[%clk 0:03:02]}  d5 {[%clk 0:02:59]} 9. cxd5 {[%clk 0:03:02]}  exd5 {[%clk 0:02:58]} 10. Nbd2 {[%clk 0:03:01]}  Nc6 {[%clk 0:02:56]} 11. Rc1 {[%clk 0:03:00]}  Rc8 {[%clk 0:02:53]} 12. Bd3 {[%clk 0:03:00]}  Re8 {[%clk 0:02:39]} 13. Re1 {[%clk 0:02:57]}  Bf8 {[%clk 0:02:37]} 14. Nf1 {[%clk 0:02:56]}  cxd4 {[%clk 0:02:25]} 15. Nxd4 {[%clk 0:02:57]}  Ne4 {[%clk 0:02:09]} 16. Ng3 {[%clk 0:02:53]}  Bb4 {[%clk 0:02:00]} 17. Re2 {[%clk 0:02:48]}  Nxd4 {[%clk 0:01:56]} 18. Bxd4 {[%clk 0:02:49]}  Rxc1 {[%clk 0:01:54]} 19. Qxc1 {[%clk 0:02:50]}  Qd7 {[%clk 0:01:52]} 20. Rc2 {[%clk 0:02:43]}  Nxg3 {[%clk 0:01:49]} 21. hxg3 {[%clk 0:02:43]}  Rc8 {[%clk 0:01:49]} 22. Qb1 {[%clk 0:02:26]}  g6 {[%clk 0:01:38]} 23. Ba1 {[%clk 0:02:19]}  Be7 {[%clk 0:01:32]} 24. Qb2 {[%clk 0:02:12]}  f6 {[%clk 0:01:30]} 25. Qd4 {[%clk 0:02:12]}  Rxc2 {[%clk 0:01:27]} 26. Bxc2 {[%clk 0:02:12]}  Qc7 {[%clk 0:01:25]} 27. Bd1 {[%clk 0:01:55]}  Qc5 {[%clk 0:00:59]} 28. Qa4 {[%clk 0:01:35]}  a5 {[%clk 0:00:51]} 29. Qd7 {[%clk 0:01:24]}  Bc8 {[%clk 0:00:35]} 30. Qe8+ {[%clk 0:01:25]}  Kg7 {[%clk 0:00:35]} 31. Bd4 {[%clk 0:01:25]}  Qc7 {[%clk 0:00:29]} 32. Bxb6 {[%clk 0:01:23]}  Qxb6 {[%clk 0:00:20]} 33. Qxe7+ {[%clk 0:01:23]}  Kh6 {[%clk 0:00:20]} 34. Qf8+ {[%clk 0:01:19]}  Kg5 {[%clk 0:00:19]} 35. Qxc8 {[%clk 0:01:19]} 1-0


[Site "https://www.chess.com"]

[Event "Titled Tuesday Blitz October 18 Late 2022"]
[White "Jobava, Baadur"]
[Black "Ibadov, Dashgyn"]
[WhiteFideId "13601520"]
[BlackFideId "24107514"]
[WhiteElo "2582"]
[BlackElo "2208"]
[Result "1-0"]
[Round "01"]
[TimeControl "180+1"]
[Date "2022.10.18"]
[WhiteClock "0:01:35"]
[BlackClock "0:00:01"]

1. d4 {[%clk 0:03:00]}  d5 {[%clk 0:02:59]} 2. Nc3 {[%clk 0:02:58]}  Nf6 {[%clk 0:02:58]} 3. Bf4 {[%clk 0:02:59]}  a6 {[%clk 0:02:57]} 4. e3 {[%clk 0:02:59]}  e6 {[%clk 0:02:54]} 5. a3 {[%clk 0:02:59]}  c5 {[%clk 0:02:53]} 6. h3 {[%clk 0:02:59]}  Nc6 {[%clk 0:02:53]} 7. Nf3 {[%clk 0:03:00]}  Bd6 {[%clk 0:02:50]} 8. dxc5 {[%clk 0:03:00]}  Bxc5 {[%clk 0:02:49]} 9. Bd3 {[%clk 0:03:01]}  h6 {[%clk 0:02:42]} 10. O-O {[%clk 0:03:01]}  Bd6 {[%clk 0:02:40]} 11. Re1 {[%clk 0:03:00]}  O-O {[%clk 0:02:38]} 12. Qd2 {[%clk 0:02:58]}  e5 {[%clk 0:02:13]} 13. Bg3 {[%clk 0:02:58]}  Be6 {[%clk 0:01:49]} 14. Rad1 {[%clk 0:02:56]}  Qc7 {[%clk 0:01:42]} 15. Bh4 {[%clk 0:02:38]}  g5 {[%clk 0:01:40]} 16. Bg3 {[%clk 0:02:33]}  Nh5 {[%clk 0:01:30]} 17. Bh2 {[%clk 0:02:01]}  Rad8 {[%clk 0:01:22]} 18. e4 {[%clk 0:02:00]}  dxe4 {[%clk 0:00:26]} 19. Nxe4 {[%clk 0:01:58]}  Be7 {[%clk 0:00:27]} 20. Qc3 {[%clk 0:01:45]}  Nf4 {[%clk 0:00:21]} 21. Bxf4 {[%clk 0:01:38]}  exf4 {[%clk 0:00:15]} 22. Nf6+ {[%clk 0:01:38]}  Bxf6 {[%clk 0:00:08]} 23. Qxf6 {[%clk 0:01:38]}  Rd6 {[%clk 0:00:01]} 24. Nxg5 {[%clk 0:01:35]} 1-0


[Site "https://www.chess.com"]

[Event "Titled Tuesday Blitz October 18 Late 2022"]
[White "Kamsky, Gata"]
[Black "Yurtseven, Melih"]
[WhiteFideId "2000024"]
[BlackFideId "6312160"]
[WhiteElo "2666"]
[BlackElo "2218"]
[Result "1-0"]
[Round "01"]
[TimeControl "180+1"]
[Date "2022.10.18"]
[WhiteClock "0:01:05"]
[BlackClock "0:00:33"]

1. e4 {[%clk 0:03:00]}  d6 {[%clk 0:02:58]} 2. d4 {[%clk 0:03:00]}  Nf6 {[%clk 0:02:57]} 3. Bd3 {[%clk 0:02:59]}  e5 {[%clk 0:02:57]} 4. c3 {[%clk 0:02:58]}  g6 {[%clk 0:02:57]} 5. Nf3 {[%clk 0:02:58]}  Nc6 {[%clk 0:02:56]} 6. h3 {[%clk 0:02:56]}  Bg7 {[%clk 0:02:56]} 7. O-O {[%clk 0:02:56]}  O-O {[%clk 0:02:56]} 8. Re1 {[%clk 0:02:56]}  Nd7 {[%clk 0:02:35]} 9. Bg5 {[%clk 0:02:53]}  Ne7 {[%clk 0:02:34]} 10. Nbd2 {[%clk 0:02:49]}  h6 {[%clk 0:02:34]} 11. Bh4 {[%clk 0:02:48]}  g5 {[%clk 0:02:34]} 12. Bg3 {[%clk 0:02:48]}  Ng6 {[%clk 0:02:34]} 13. Nc4 {[%clk 0:02:46]}  Qe7 {[%clk 0:02:33]} 14. Ne3 {[%clk 0:02:46]}  Nb6 {[%clk 0:02:29]} 15. Nf5 {[%clk 0:02:39]}  Bxf5 {[%clk 0:02:22]} 16. exf5 {[%clk 0:02:39]}  Nf4 {[%clk 0:02:21]} 17. Bxf4 {[%clk 0:02:26]}  gxf4 {[%clk 0:02:22]} 18. Qe2 {[%clk 0:02:26]}  Rae8 {[%clk 0:02:20]} 19. f6 {[%clk 0:02:22]}  Qxf6 {[%clk 0:02:12]} 20. dxe5 {[%clk 0:02:22]}  dxe5 {[%clk 0:02:10]} 21. Qe4 {[%clk 0:02:23]}  Qg6 {[%clk 0:02:09]} 22. Qxg6 {[%clk 0:02:23]}  fxg6 {[%clk 0:02:09]} 23. Bxg6 {[%clk 0:02:23]}  Re7 {[%clk 0:02:05]} 24. Be4 {[%clk 0:02:23]}  c6 {[%clk 0:02:06]} 25. Rad1 {[%clk 0:02:20]}  Na4 {[%clk 0:01:59]} 26. Rd2 {[%clk 0:02:12]}  Nc5 {[%clk 0:01:58]} 27. Rde2 {[%clk 0:02:08]}  Kf7 {[%clk 0:01:55]} 28. Bc2 {[%clk 0:02:05]}  Rfe8 {[%clk 0:01:54]} 29. Nd2 {[%clk 0:02:05]}  a5 {[%clk 0:01:49]} 30. a3 {[%clk 0:02:00]}  Rd8 {[%clk 0:01:47]} 31. b4 {[%clk 0:01:57]}  axb4 {[%clk 0:01:45]} 32. axb4 {[%clk 0:01:57]}  Nd3 {[%clk 0:01:46]} 33. Rb1 {[%clk 0:01:53]}  e4 {[%clk 0:01:29]} 34. Nxe4 {[%clk 0:01:51]}  f3 {[%clk 0:01:29]} 35. Re3 {[%clk 0:01:48]}  Ne5 {[%clk 0:01:26]} 36. gxf3 {[%clk 0:01:47]}  Ng6 {[%clk 0:01:24]} 37. Bb3+ {[%clk 0:01:45]}  Kf8 {[%clk 0:01:23]} 38. Nc5 {[%clk 0:01:45]}  Nf4 {[%clk 0:01:12]} 39. Rxe7 {[%clk 0:01:39]}  Kxe7 {[%clk 0:01:13]} 40. Re1+ {[%clk 0:01:39]}  Kf8 {[%clk 0:01:08]} 41. Re4 {[%clk 0:01:38]}  Nxh3+ {[%clk 0:01:02]} 42. Kg2 {[%clk 0:01:38]}  Ng5 {[%clk 0:01:03]} 43. Rf4+ {[%clk 0:01:37]}  Ke8 {[%clk 0:01:02]} 44. Nxb7 {[%clk 0:01:36]}  Rd3 {[%clk 0:01:00]} 45. Nc5 {[%clk 0:01:30]}  Rxc3 {[%clk 0:01:00]} 46. Ba4 {[%clk 0:01:30]}  Ke7 {[%clk 0:00:51]} 47. Bxc6 {[%clk 0:01:29]}  Be5 {[%clk 0:00:48]} 48. Rf5 {[%clk 0:01:28]}  Bd6 {[%clk 0:00:48]} 49. Bb7 {[%clk 0:01:11]}  Ne6 {[%clk 0:00:44]} 50. Ne4 {[%clk 0:01:08]}  Nf4+ {[%clk 0:00:39]} 51. Rxf4 {[%clk 0:01:07]}  Bxf4 {[%clk 0:00:37]} 52. Nxc3 {[%clk 0:01:07]}  Bd2 {[%clk 0:00:36]} 53. Nd5+ {[%clk 0:01:07]}  Kd6 {[%clk 0:00:36]} 54. b5 {[%clk 0:01:07]}  h5 {[%clk 0:00:33]} 55. Bc6 {[%clk 0:01:07]}  Bg5 {[%clk 0:00:33]} 56. Kg3 {[%clk 0:01:07]}  Ke5 {[%clk 0:00:32]} 57. f4+ {[%clk 0:01:06]}  Kf5 {[%clk 0:00:31]} 58. fxg5 {[%clk 0:01:05]}  h4+ {[%clk 0:00:32]} 59. Kxh4 {[%clk 0:01:05]}  Kg6 {[%clk 0:00:33]} 60. Bd7 {[%clk 0:01:05]} 1-0


[Site "https://www.chess.com"]

[Event "Titled Tuesday Blitz October 18 Late 2022"]
[White "Kanakaris, Georgios"]
[Black "Schut, Han"]
[WhiteFideId "4209460"]
[BlackFideId "1005561"]
[WhiteElo "2291"]
[BlackElo "2024"]
[Result "1-0"]
[Round "01"]
[TimeControl "180+1"]
[Date "2022.10.19"]
[WhiteClock "0:01:44"]
[BlackClock "0:01:31"]

1. d4 {[%clk 0:03:00]}  Nf6 {[%clk 0:02:59]} 2. Nf3 {[%clk 0:03:00]}  g6 {[%clk 0:02:59]} 3. g3 {[%clk 0:03:00]}  Bg7 {[%clk 0:03:00]} 4. Bg2 {[%clk 0:03:00]}  O-O {[%clk 0:03:01]} 5. O-O {[%clk 0:03:01]}  d5 {[%clk 0:03:01]} 6. c4 {[%clk 0:03:01]}  dxc4 {[%clk 0:03:02]} 7. Na3 {[%clk 0:03:01]}  c3 {[%clk 0:03:02]} 8. bxc3 {[%clk 0:03:02]}  c5 {[%clk 0:03:01]} 9. Bb2 {[%clk 0:03:03]}  cxd4 {[%clk 0:03:01]} 10. cxd4 {[%clk 0:03:03]}  Nc6 {[%clk 0:02:58]} 11. Re1 {[%clk 0:03:01]}  Bg4 {[%clk 0:02:37]} 12. h3 {[%clk 0:02:59]}  Bxf3 {[%clk 0:02:35]} 13. Bxf3 {[%clk 0:03:00]}  Qd7 {[%clk 0:02:32]} 14. Bg2 {[%clk 0:02:59]}  Rad8 {[%clk 0:02:28]} 15. e3 {[%clk 0:02:59]}  Rfe8 {[%clk 0:02:18]} 16. Nc4 {[%clk 0:02:57]}  b5 {[%clk 0:02:11]} 17. Ne5 {[%clk 0:02:49]}  Nxe5 {[%clk 0:02:07]} 18. dxe5 {[%clk 0:02:50]}  Nd5 {[%clk 0:02:01]} 19. Qb3 {[%clk 0:02:35]}  e6 {[%clk 0:01:54]} 20. Red1 {[%clk 0:02:15]}  Qc7 {[%clk 0:01:46]} 21. Bxd5 {[%clk 0:02:06]}  exd5 {[%clk 0:01:46]} 22. Rxd5 {[%clk 0:02:06]}  Rxd5 {[%clk 0:01:40]} 23. Qxd5 {[%clk 0:02:06]}  Bxe5 {[%clk 0:01:37]} 24. Qxb5 {[%clk 0:01:45]}  Bxg3 {[%clk 0:01:31]} 25. Qxe8# {[%clk 0:01:44]} 1-0


[Site "https://www.chess.com"]

[Event "Titled Tuesday Blitz October 18 Late 2022"]
[White "Korchmar, Vasiliy"]
[Black "Gonzalez, Francisco Silva"]
[WhiteFideId "24131750"]
[BlackFideId "1512285"]
[WhiteElo "2370"]
[BlackElo "2159"]
[Result "1-0"]
[Round "01"]
[TimeControl "180+1"]
[Date "2022.10.19"]
[WhiteClock "0:00:28"]
[BlackClock "0:00:58"]

1. e4 {[%clk 0:03:00]}  e5 {[%clk 0:02:59]} 2. Nf3 {[%clk 0:03:01]}  Nc6 {[%clk 0:02:58]} 3. Bc4 {[%clk 0:03:01]}  Bc5 {[%clk 0:02:57]} 4. c3 {[%clk 0:03:01]}  Nf6 {[%clk 0:02:57]} 5. d3 {[%clk 0:03:02]}  d6 {[%clk 0:02:56]} 6. Bg5 {[%clk 0:03:02]}  h6 {[%clk 0:02:54]} 7. Bh4 {[%clk 0:03:02]}  a6 {[%clk 0:02:53]} 8. Nbd2 {[%clk 0:03:01]}  g5 {[%clk 0:02:52]} 9. Bg3 {[%clk 0:03:01]}  Bg4 {[%clk 0:02:51]} 10. b4 {[%clk 0:03:01]}  Bb6 {[%clk 0:02:50]} 11. a4 {[%clk 0:03:01]}  Qe7 {[%clk 0:02:49]} 12. O-O {[%clk 0:02:59]}  Nh5 {[%clk 0:02:47]} 13. b5 {[%clk 0:02:57]}  Nxg3 {[%clk 0:02:47]} 14. hxg3 {[%clk 0:02:56]}  Na5 {[%clk 0:02:46]} 15. Bd5 {[%clk 0:02:55]}  h5 {[%clk 0:02:44]} 16. bxa6 {[%clk 0:01:49]}  Rxa6 {[%clk 0:02:42]} 17. Rb1 {[%clk 0:01:50]}  h4 {[%clk 0:02:41]} 18. gxh4 {[%clk 0:01:39]}  Rxh4 {[%clk 0:02:41]} 19. Nxh4 {[%clk 0:01:11]}  Bxd1 {[%clk 0:02:39]} 20. Nf5 {[%clk 0:01:12]}  Qf6 {[%clk 0:02:19]} 21. Rfxd1 {[%clk 0:01:12]}  g4 {[%clk 0:02:19]} 22. Nf1 {[%clk 0:01:10]}  Qg5 {[%clk 0:02:18]} 23. d4 {[%clk 0:01:05]}  f6 {[%clk 0:02:17]} 24. N1e3 {[%clk 0:00:48]}  Kd7 {[%clk 0:02:13]} 25. g3 {[%clk 0:00:48]}  Ra8 {[%clk 0:02:12]} 26. Kg2 {[%clk 0:00:47]}  Rh8 {[%clk 0:02:07]} 27. Rh1 {[%clk 0:00:48]}  Rxh1 {[%clk 0:02:05]} 28. Rxh1 {[%clk 0:00:48]}  c6 {[%clk 0:02:05]} 29. Rh7+ {[%clk 0:00:48]}  Kd8 {[%clk 0:02:04]} 30. Be6 {[%clk 0:00:45]}  exd4 {[%clk 0:01:59]} 31. cxd4 {[%clk 0:00:40]}  Qg6 {[%clk 0:01:35]} 32. Rh8+ {[%clk 0:00:35]}  Qe8 {[%clk 0:01:31]} 33. Rxe8+ {[%clk 0:00:35]}  Kxe8 {[%clk 0:01:31]} 34. Nxg4 {[%clk 0:00:32]}  Bd8 {[%clk 0:01:26]} 35. d5 {[%clk 0:00:27]}  cxd5 {[%clk 0:01:16]} 36. Bxd5 {[%clk 0:00:26]}  Kd7 {[%clk 0:01:15]} 37. Nge3 {[%clk 0:00:25]}  Bb6 {[%clk 0:01:11]} 38. Nc4 {[%clk 0:00:25]}  Nxc4 {[%clk 0:01:09]} 39. Bxc4 {[%clk 0:00:26]}  Kc6 {[%clk 0:01:07]} 40. Bd5+ {[%clk 0:00:26]}  Kc7 {[%clk 0:01:05]} 41. f3 {[%clk 0:00:26]}  Bc5 {[%clk 0:01:05]} 42. Kf1 {[%clk 0:00:26]}  Kb6 {[%clk 0:01:05]} 43. Ke2 {[%clk 0:00:27]}  Ka5 {[%clk 0:01:05]} 44. Bxb7 {[%clk 0:00:27]}  Kxa4 {[%clk 0:01:06]} 45. Kd3 {[%clk 0:00:28]}  Kb3 {[%clk 0:01:06]} 46. Bd5+ {[%clk 0:00:26]}  Kb4 {[%clk 0:01:06]} 47. Ne3 {[%clk 0:00:27]}  Kb5 {[%clk 0:01:06]} 48. Ng4 {[%clk 0:00:27]}  f5 {[%clk 0:01:05]} 49. exf5 {[%clk 0:00:27]}  Bb6 {[%clk 0:01:05]} 50. Ke4 {[%clk 0:00:27]}  Kc5 {[%clk 0:01:04]} 51. f6 {[%clk 0:00:27]}  Bd8 {[%clk 0:01:04]} 52. f7 {[%clk 0:00:28]}  Be7 {[%clk 0:01:04]} 53. Ne3 {[%clk 0:00:28]}  Bf8 {[%clk 0:01:04]} 54. Nf5 {[%clk 0:00:29]}  Kb4 {[%clk 0:01:03]} 55. g4 {[%clk 0:00:30]}  Kc3 {[%clk 0:01:03]} 56. g5 {[%clk 0:00:31]}  Kd2 {[%clk 0:01:01]} 57. g6 {[%clk 0:00:32]}  Bh6 {[%clk 0:00:59]} 58. g7 {[%clk 0:00:33]}  Bf4 {[%clk 0:00:58]} 59. Kxf4 {[%clk 0:00:32]}  Ke2 {[%clk 0:00:58]} 60. f8=Q {[%clk 0:00:32]}  Kf2 {[%clk 0:00:59]} 61. Qe7 {[%clk 0:00:29]}  Kf1 {[%clk 0:00:58]} 62. g8=Q {[%clk 0:00:28]} 1-0


[Site "https://www.chess.com"]

[Event "Titled Tuesday Blitz October 18 Late 2022"]
[White "Koutlas, Nikolaos"]
[Black "Timmermans, Mark"]
[WhiteFideId "25827138"]
[BlackFideId "1026399"]
[WhiteElo "2167"]
[BlackElo "2460"]
[Result "0-1"]
[Round "01"]
[TimeControl "180+1"]
[Date "2022.10.19"]
[WhiteClock "0:00:01"]
[BlackClock "0:01:52"]

1. c4 {[%clk 0:02:58]}  Nf6 {[%clk 0:02:57]} 2. Nc3 {[%clk 0:02:58]}  e6 {[%clk 0:02:55]} 3. g3 {[%clk 0:02:57]}  d5 {[%clk 0:02:55]} 4. Bg2 {[%clk 0:02:56]}  Be7 {[%clk 0:02:54]} 5. d4 {[%clk 0:02:54]}  O-O {[%clk 0:02:53]} 6. Nf3 {[%clk 0:02:52]}  dxc4 {[%clk 0:02:51]} 7. O-O {[%clk 0:02:50]}  Nc6 {[%clk 0:02:37]} 8. Be3 {[%clk 0:02:38]}  a6 {[%clk 0:02:34]} 9. Ne5 {[%clk 0:02:38]}  Na5 {[%clk 0:02:28]} 10. Qa4 {[%clk 0:02:25]}  c6 {[%clk 0:02:26]} 11. Nxc4 {[%clk 0:02:24]}  Nxc4 {[%clk 0:02:25]} 12. Qxc4 {[%clk 0:02:24]}  Nd5 {[%clk 0:02:26]} 13. Bd2 {[%clk 0:02:19]}  Bd7 {[%clk 0:02:22]} 14. e4 {[%clk 0:02:15]}  b5 {[%clk 0:02:22]} 15. Qb3 {[%clk 0:02:11]}  Nb6 {[%clk 0:02:22]} 16. Rad1 {[%clk 0:02:10]}  c5 {[%clk 0:02:17]} 17. Be3 {[%clk 0:01:51]}  Nc4 {[%clk 0:02:15]} 18. Bc1 {[%clk 0:01:28]}  cxd4 {[%clk 0:02:13]} 19. Rxd4 {[%clk 0:01:27]}  Bc5 {[%clk 0:02:13]} 20. Rd3 {[%clk 0:01:25]}  Qc7 {[%clk 0:02:11]} 21. Rfd1 {[%clk 0:01:19]}  Bc6 {[%clk 0:02:10]} 22. Bf4 {[%clk 0:00:57]}  Qb6 {[%clk 0:02:10]} 23. Qc2 {[%clk 0:00:51]}  Rac8 {[%clk 0:02:04]} 24. Kf1 {[%clk 0:00:43]}  b4 {[%clk 0:01:59]} 25. Ne2 {[%clk 0:00:06]}  Bb5 {[%clk 0:01:59]} 26. Kg1 {[%clk 0:00:01]}  Bxf2+ {[%clk 0:01:58]} 27. Kh1 {[%clk 0:00:02]}  Ne3 {[%clk 0:01:55]} 28. Qxc8 {[%clk 0:00:01]}  Rxc8 {[%clk 0:01:54]} 29. Bxe3 {[%clk 0:00:02]}  Bxe3 {[%clk 0:01:53]} 30. Nf4 {[%clk 0:00:01]}  Bxd3 {[%clk 0:01:52]} 0-1


[Site "https://www.chess.com"]